bitfinex/quotes_SOLUSD_20251117
["timestamp","ask_amount","ask_price","bid_price","bid_amount"]
[1763395074397,4.44,137.37,137.34,7.36641907]
[1763395075087,4.44,137.37,137.33,8.05641907]
[1763395075283,8.07641907,137.36,137.32,7.36641907]
[1763395075797,11.80641907,137.37,137.32,8.05641907]
[1763395076099,12.51641907,137.37,137.32,8.05641907]
[1763395076801,12.51641907,137.37,137.33,7.36641907]
[1763395077301,11.80641907,137.37,137.33,7.36641907]
[1763395077508,0.71,137.36,137.33,7.36641907]
[1763395077702,12.51641907,137.37,137.33,7.36641907]
[1763395077896,5.15,137.37,137.33,7.36641907]
[1763395078211,104.6,137.39,137.36,7.36641907]
[1763395078504,4.44,137.4,137.37,7.36641907]
[1763395078505,104.6,137.38,137.37,7.36641907]
[1763395078912,104.6,137.38,137.35,7.36641907]
[1763395079208,0.71,137.37,137.34,7.36641907]
[1763395079512,105.31,137.38,137.34,7.36641907]
[1763395079716,104.6,137.38,137.36,7.36641907]
[1763395080311,112.67641907,137.37,137.32,7.36641907]
[1763395080508,7.36641907,137.35,137.21,9.78882769]
[1763395080820,17.15524676,137.33,137.26,0.79]
[1763395080979,7.36641907,137.31,137.26,0.1]
[1763395081179,104.6,137.3,137.27,7.36641907]
[1763395081412,104.6,137.3,137.29,7.36641907]
[1763395081713,104.6,137.3,137.29,8.05641907]
[1763395082706,18.12096,137.36,137.29,8.05641907]
[1763395082915,4.44,137.38,137.35,7.36641907]
[1763395083108,110.54804133,137.43,137.3,0.69]
[1763395083109,7.36641907,137.42,137.37,7.36641907]
[1763395083321,0.71,137.43,137.4,7.36641907]
[1763395083611,5.15,137.43,137.41,7.36641907]
[1763395083807,4.44,137.43,137.41,7.36641907]
[1763395084013,4.44,137.43,137.39,7.36641907]
[1763395084309,4.44,137.43,137.41,7.36641907]
[1763395084521,4.44,137.43,137.42,7.36641907]
[1763395084725,4.44,137.43,137.38,0.69]
[1763395085138,5.15,137.43,137.4,7.36641907]
[1763395085345,5.15,137.43,137.37,7.36641907]
[1763395085346,8.07641907,137.42,137.37,7.36641907]
[1763395085633,8.07641907,137.42,137.35,0.69]
[1763395085634,18.12096,137.4,137.36,7.36641907]
[1763395085818,4.44,137.39,137.36,7.36641907]
[1763395086323,4.44,137.39,137.37,7.36641907]
[1763395086502,18.12096,137.43,137.38,7.36641907]
[1763395086703,4.44,137.45,137.42,7.36641907]
[1763395086930,4.44,137.46,137.42,7.36641907]
[1763395087239,22.56096,137.46,137.42,7.36641907]
[1763395087423,0.68,137.45,137.41,7.36641907]
[1763395087627,8.04641907,137.45,137.41,7.36641907]
[1763395087810,18.12096,137.47,137.37,9.78882769]
[1763395088005,16.62426619,137.46,137.41,7.36641907]
[1763395088232,11.80641907,137.46,137.42,7.36641907]
[1763395088428,0.68,137.48,137.44,7.36641907]
[1763395088635,23.24096,137.47,137.43,7.36641907]
[1763395088811,22.56096,137.47,137.43,7.36641907]
[1763395089129,22.56096,137.47,137.42,7.36641907]
[1763395089130,8.04641907,137.46,137.42,7.36641907]
[1763395090040,0.68,137.46,137.42,7.36641907]
[1763395090331,29.92737907,137.47,137.41,0.65]
[1763395090523,0.68,137.46,137.43,7.36641907]
[1763395090718,0.68,137.46,137.42,7.36641907]
[1763395091112,22.56096,137.47,137.44,7.36641907]
[1763395091629,22.56096,137.47,137.45,7.36641907]
[1763395092235,0.68,137.46,137.42,7.36641907]
[1763395092419,0.68,137.46,137.43,7.36641907]
[1763395092619,22.56096,137.47,137.43,7.36641907]
[1763395092826,22.56096,137.47,137.44,7.36641907]
[1763395093030,22.56096,137.47,137.43,7.36641907]
[1763395093235,4.44,137.47,137.44,8.01641907]
[1763395093445,0.2,137.49,137.44,0.65]
[1763395093621,0.2,137.49,137.48,7.36641907]
[1763395094336,0.2,137.49,137.48,8.01641907]
[1763395095037,0.2,137.49,137.46,0.65]
[1763395095207,0.2,137.49,137.48,8.01641907]
[1763395096437,0.88,137.49,137.44,0.65]
[1763395096634,0.88,137.49,137.41,9.78882769]
[1763395096818,0.88,137.49,137.46,7.36641907]
[1763395097021,0.88,137.49,137.47,7.36641907]
[1763395097022,0.2,137.49,137.47,7.36641907]
[1763395097223,0.2,137.49,137.46,7.36641907]
[1763395097422,0.66,137.48,137.4,4.44]
[1763395097621,18.12096,137.48,137.46,7.36641907]
[1763395097936,18.12096,137.48,137.47,7.36641907]
[1763395098132,0.2,137.49,137.47,7.36641907]
[1763395098338,18.32096,137.49,137.47,7.36641907]
[1763395099221,104.6,137.48,137.46,7.36641907]
[1763395099422,104.6,137.48,137.45,7.36641907]
[1763395099735,104.6,137.48,137.47,7.36641907]
[1763395100329,104.6,137.48,137.46,7.36641907]
[1763395100529,105.26,137.48,137.42,0.69]
[1763395100821,105.26,137.48,137.32,0.72822604]
[1763395100822,105.26,137.47,137.43,7.36641907]
[1763395101023,105.26,137.47,137.44,7.36641907]
[1763395101438,105.26,137.47,137.43,7.36641907]
[1763395101745,104.6,137.47,137.45,7.36641907]
[1763395101921,104.6,137.47,137.46,7.36641907]
[1763395102330,104.6,137.47,137.45,7.36641907]
[1763395103146,105.26,137.47,137.44,7.36641907]
[1763395103322,104.6,137.47,137.44,7.36641907]
[1763395103523,104.6,137.47,137.45,7.36641907]
[1763395104062,0.66,137.46,137.44,7.36641907]
[1763395104214,0.66,137.46,137.42,7.36641907]
[1763395104412,104.6,137.45,137.43,7.36641907]
[1763395104931,104.6,137.45,137.42,7.36641907]
[1763395105346,105.26,137.45,137.41,7.36641907]
[1763395105519,105.26,137.45,137.4,0.69]
[1763395105726,104.6,137.44,137.41,7.36641907]
[1763395106417,105.26,137.43,137.39,7.36641907]
[1763395106622,104.6,137.42,137.38,7.36641907]
[1763395106819,104.6,137.41,137.38,7.36641907]
[1763395107123,109.7,137.41,137.37,7.36641907]
[1763395107539,0.66,137.4,137.36,7.36641907]
[1763395107720,109.04,137.41,137.38,7.36641907]
[1763395107922,109.04,137.41,137.39,7.36641907]
[1763395108121,109.04,137.41,137.4,7.36641907]
[1763395108746,109.04,137.41,137.38,7.36641907]
[1763395108915,109.04,137.41,137.39,7.36641907]
[1763395109348,8.02641907,137.46,137.4,8.05641907]
[1763395109528,8.02641907,137.46,137.36,7.36641907]
[1763395109529,18.12096,137.43,137.41,7.36641907]
[1763395109725,18.12096,137.43,137.39,7.36641907]
[1763395110125,18.78096,137.43,137.39,7.36641907]
[1763395110327,18.78096,137.43,137.4,7.36641907]
[1763395111051,4.44,137.44,137.38,0.69]
[1763395111427,4.44,137.44,137.41,7.36641907]
[1763395111625,0.66,137.43,137.4,7.36641907]
[1763395112222,8.02641907,137.43,137.36,0.69]
[1763395112417,25.48737907,137.42,137.37,7.36641907]
[1763395112738,18.78096,137.42,137.35,0.69]
[1763395113048,18.78096,137.42,137.38,7.36641907]
[1763395113218,18.12096,137.42,137.39,7.36641907]
[1763395113841,18.78096,137.42,137.39,7.36641907]
[1763395114147,0.66,137.41,137.34,18.81096]
[1763395114348,0.66,137.41,137.38,7.36641907]
[1763395114532,104.6,137.4,137.38,7.36641907]
[1763395115048,104.6,137.39,137.37,7.36641907]
[1763395115257,104.6,137.38,137.35,7.36641907]
[1763395115560,104.6,137.37,137.35,7.36641907]
[1763395115874,104.6,137.36,137.32,7.36641907]
[1763395116057,104.6,137.35,137.32,7.36641907]
[1763395116351,104.6,137.35,137.3,0.69]
[1763395116352,104.6,137.34,137.31,7.36641907]
[1763395116732,0.7,137.33,137.3,7.36641907]
[1763395116931,0.7,137.33,137.29,7.36641907]
[1763395117663,104.6,137.34,137.3,7.36641907]
[1763395117842,104.6,137.34,137.32,7.36641907]
[1763395118367,104.6,137.34,137.33,7.36641907]
[1763395118570,4.42,137.35,137.33,7.36641907]
[1763395118744,4.42,137.35,137.34,7.36641907]
[1763395119480,104.6,137.41,137.34,8.06641907]
[1763395119774,123.42096,137.41,137.38,7.36641907]
[1763395119982,123.42096,137.41,137.39,7.36641907]
[1763395120157,4.44,137.42,137.4,7.36641907]
[1763395120343,4.44,137.42,137.41,7.36641907]
[1763395120676,4.44,137.42,137.4,7.36641907]
[1763395121056,5.14,137.42,137.4,7.36641907]
[1763395121965,105.3,137.41,137.33,27.90978769]
[1763395122146,121.75524676,137.4,137.35,7.36641907]
[1763395122350,122.45524676,137.4,137.35,7.36641907]
[1763395122549,8.06641907,137.39,137.34,7.36641907]
[1763395122770,4.44,137.38,137.34,7.36641907]
[1763395122966,104.6,137.37,137.34,7.36641907]
[1763395123159,104.6,137.37,137.36,7.36641907]
[1763395124177,104.6,137.37,137.3,18.12096]
[1763395124382,104.6,137.37,137.26,0.82854436]
[1763395124383,7.36641907,137.33,137.26,0.1]
[1763395124588,18.12096,137.31,137.26,0.1]
[1763395124751,7.36641907,137.29,137.26,0.1]
[1763395125074,7.36641907,137.28,137.26,0.1]
[1763395125573,8.06641907,137.29,137.26,0.1]
[1763395126081,8.06641907,137.28,137.26,0.1]
[1763395126782,12.50641907,137.3,137.26,0.1]
[1763395127070,4.44,137.29,137.26,7.46641907]
[1763395127479,4.44,137.29,137.27,7.36641907]
[1763395127681,4.44,137.29,137.26,7.46641907]
[1763395127853,4.44,137.29,137.28,7.36641907]
[1763395128266,4.44,137.29,137.28,8.06641907]
[1763395128474,18.12096,137.34,137.28,8.06641907]
[1763395128697,0.7,137.36,137.33,7.36641907]
[1763395128849,4.44,137.35,137.34,7.36641907]
[1763395129050,7.36641907,137.35,137.27,0.7]
[1763395129253,7.36641907,137.34,137.28,0.7]
[1763395129454,7.36641907,137.34,137.29,7.36641907]
[1763395129649,0.7,137.35,137.31,7.36641907]
[1763395130268,0.7,137.35,137.32,7.36641907]
[1763395130449,22.56096,137.36,137.33,7.36641907]
[1763395130647,23.26096,137.36,137.29,0.7]
[1763395130891,23.26096,137.36,137.32,7.36641907]
[1763395131075,5.14,137.36,137.32,7.36641907]
[1763395131292,104.6,137.46,137.35,7.36641907]
[1763395131446,7.36641907,137.4,137.35,7.36641907]
[1763395131644,11.80641907,137.39,137.34,7.36641907]
[1763395131875,4.44,137.39,137.36,7.36641907]
[1763395132059,0.7,137.38,137.29,27.90978769]
[1763395132250,8.06641907,137.38,137.33,7.36641907]
[1763395132651,0.7,137.38,137.34,7.36641907]
[1763395132848,4.44,137.39,137.35,12.83157924]
[1763395133068,30.95253924,137.37,137.32,12.83157924]
[1763395133469,0.7,137.36,137.32,12.83157924]
[1763395133664,4.44,137.35,137.32,12.83157924]
[1763395133860,4.44,137.35,137.33,12.83157924]
[1763395134070,104.6,137.34,137.32,12.83157924]
[1763395134271,104.6,137.33,137.32,12.83157924]
[1763395134980,104.6,137.33,137.32,13.53157924]
[1763395135680,0.7,137.38,137.32,13.53157924]
[1763395135888,4.44,137.38,137.37,12.83157924]
[1763395136081,5.14,137.38,137.34,12.83157924]
[1763395136287,5.14,137.38,137.31,18.82096]
[1763395136586,5.14,137.38,137.35,12.83157924]
[1763395137176,5.14,137.38,137.32,0.7]
[1763395137177,0.7,137.37,137.32,0.7]
[1763395137374,0.7,137.37,137.33,12.83157924]
[1763395137788,18.12096,137.39,137.35,12.83157924]
[1763395137967,18.12096,137.38,137.35,12.83157924]
[1763395138178,18.82096,137.38,137.35,12.83157924]
[1763395138569,4.44,137.39,137.37,12.83157924]
[1763395138772,0.7,137.38,137.31,0.7]
[1763395138988,5.14,137.38,137.34,12.83157924]
[1763395139166,18.12096,137.37,137.31,0.7]
[1763395139367,18.12096,137.37,137.33,12.83157924]
[1763395139762,18.82096,137.37,137.33,12.83157924]
[1763395140295,13.53157924,137.36,137.28,18.82096]
[1763395140588,0.7,137.36,137.32,12.83157924]
[1763395141088,104.6,137.35,137.29,18.12096]
[1763395141271,109.02,137.34,137.31,12.83157924]
[1763395141989,105.3,137.33,137.26,0.8]
[1763395142198,104.6,137.32,137.29,12.83157924]
[1763395142406,104.6,137.32,137.3,12.83157924]
[1763395143300,104.6,137.32,137.31,13.53157924]
[1763395143487,104.6,137.32,137.27,18.82096]
[1763395143690,104.6,137.32,137.31,12.83157924]
[1763395144283,104.6,137.32,137.29,0.7]
[1763395144491,104.6,137.32,137.3,12.83157924]
[1763395145204,104.6,137.32,137.31,13.53157924]
[1763395145391,104.6,137.36,137.31,13.53157924]
[1763395145591,104.6,137.36,137.35,12.83157924]
[1763395146001,4.42,137.37,137.35,12.83157924]
[1763395146202,4.42,137.37,137.36,12.83157924]
[1763395146505,104.6,137.43,137.36,12.83157924]
[1763395146506,0.65,137.45,137.36,13.54157924]
[1763395146689,4.42,137.44,137.41,12.83157924]
[1763395147003,4.42,137.44,137.33,22.54096]
[1763395147004,18.12096,137.42,137.35,0.71]
[1763395147301,30.95253924,137.42,137.38,12.83157924]
[1763395147492,0.65,137.41,137.35,0.71]
[1763395147696,4.42,137.4,137.35,0.71]
[1763395147884,22.54096,137.4,137.36,12.83157924]
[1763395148083,23.19096,137.4,137.36,12.83157924]
[1763395148283,0.65,137.39,137.36,12.83157924]
[1763395148513,9.78882769,137.38,137.3,5.13]
[1763395148822,18.12096,137.39,137.37,12.83157924]
[1763395149116,18.77096,137.39,137.37,12.83157924]
[1763395149276,18.77096,137.39,137.36,12.83157924]
[1763395150309,18.77096,137.39,137.33,0.71]
[1763395150310,18.77096,137.39,137.35,12.83157924]
[1763395150498,18.77096,137.39,137.34,12.83157924]
[1763395150879,0.65,137.38,137.34,12.83157924]
[1763395151408,0.65,137.38,137.33,12.83157924]
[1763395151785,0.65,137.38,137.34,12.83157924]
[1763395152298,104.6,137.37,137.31,0.71]
[1763395152607,109.02,137.36,137.35,12.83157924]
[1763395152907,4.42,137.36,137.34,12.83157924]
[1763395153894,104.6,137.35,137.32,0.71]
[1763395154097,4.42,137.36,137.34,12.83157924]
[1763395155221,104.6,137.34,137.28,0.71]
[1763395155509,105.25,137.34,137.3,12.83157924]
[1763395155885,105.25,137.33,137.3,12.83157924]
[1763395156088,4.42,137.32,137.3,13.54157924]
[1763395156292,4.42,137.32,137.3,12.83157924]
[1763395157203,4.42,137.32,137.28,0.71]
[1763395157408,105.32,137.31,137.28,12.83157924]
[1763395158224,104.6,137.31,137.29,0.66]
[1763395158394,104.6,137.31,137.3,12.83157924]
[1763395159321,104.6,137.31,137.3,13.49157924]
[1763395159823,104.6,137.31,137.3,12.83157924]
[1763395161605,4.42,137.33,137.3,12.83157924]
[1763395161788,4.42,137.33,137.28,0.66]
[1763395161789,4.42,137.33,137.31,12.83157924]
[1763395162413,5.14,137.33,137.3,12.83157924]
[1763395162611,4.42,137.33,137.3,12.83157924]
[1763395163321,5.14,137.33,137.3,12.83157924]
[1763395164313,0.72,137.32,137.28,0.66]
[1763395164489,0.72,137.32,137.28,12.83157924]
[1763395164890,22.62040693,137.31,137.26,12.93157924]
[1763395165090,30.95253924,137.29,137.26,0.1]
[1763395165290,17.25157924,137.28,137.26,0.1]
[1763395165498,17.97157924,137.28,137.26,0.1]
[1763395165717,23.34040693,137.27,137.26,0.1]
[1763395165891,13.55157924,137.27,137.26,0.1]
[1763395166097,4.42,137.27,137.26,0.1]
[1763395166298,5.14,137.27,137.26,0.1]
[1763395166493,4.42,137.27,137.26,0.1]
[1763395167302,31.67253924,137.32,137.26,13.59157924]
[1763395167504,4.42,137.33,137.29,12.83157924]
[1763395168026,4.42,137.33,137.3,12.83157924]
[1763395168202,5.14,137.33,137.3,12.83157924]
[1763395168420,4.42,137.33,137.32,12.83157924]
[1763395168614,0.72,137.38,137.32,12.83157924]
[1763395168918,4.42,137.37,137.36,12.83157924]
[1763395169217,4.42,137.38,137.36,12.83157924]
[1763395169408,4.42,137.38,137.37,12.83157924]
[1763395170092,4.42,137.38,137.36,13.49157924]
[1763395170709,4.42,137.38,137.31,5.08]
[1763395170917,4.42,137.38,137.34,12.83157924]
[1763395171092,4.42,137.38,137.35,12.83157924]
[1763395171494,23.26096,137.38,137.34,12.83157924]
[1763395171695,22.54096,137.38,137.35,12.83157924]
[1763395171922,22.54096,137.38,137.36,12.83157924]
[1763395172502,4.42,137.38,137.36,12.83157924]
[1763395172728,10.50882769,137.43,137.37,13.49157924]
[1763395172932,22.54096,137.42,137.39,12.83157924]
[1763395173140,5.14,137.42,137.39,12.83157924]
[1763395173325,4.42,137.42,137.4,12.83157924]
[1763395173537,4.42,137.42,137.41,13.49157924]
[1763395173821,4.42,137.42,137.41,12.83157924]
[1763395174214,4.42,137.42,137.4,12.83157924]
[1763395174422,4.42,137.42,137.41,12.83157924]
[1763395174614,4.42,137.42,137.4,12.83157924]
[1763395174815,4.42,137.42,137.41,12.83157924]
[1763395175941,4.42,137.42,137.41,13.49157924]
[1763395176118,4.42,137.45,137.41,0.66]
[1763395176437,4.42,137.45,137.43,12.83157924]
[1763395176822,5.11,137.45,137.42,12.83157924]
[1763395177137,4.42,137.45,137.42,12.83157924]
[1763395177337,4.42,137.45,137.4,0.72]
[1763395177634,4.42,137.45,137.4,12.83157924]
[1763395177635,10.47882769,137.44,137.4,12.83157924]
[1763395177837,10.47882769,137.44,137.37,0.72]
[1763395177838,23.31040693,137.44,137.39,12.83157924]
[1763395178317,0.69,137.43,137.39,12.83157924]
[1763395178634,0.69,137.43,137.4,12.83157924]
[1763395178827,0.69,137.43,137.39,12.83157924]
[1763395179934,13.52157924,137.43,137.39,12.83157924]
[1763395180132,0.69,137.43,137.39,12.83157924]
[1763395180332,0.69,137.43,137.38,12.83157924]
[1763395181414,0.69,137.43,137.38,13.55157924]
[1763395183142,0.69,137.43,137.39,12.83157924]
[1763395184143,104.6,137.42,137.39,12.83157924]
[1763395184339,109.02,137.41,137.38,12.83157924]
[1763395184817,109.71,137.41,137.38,12.83157924]
[1763395185237,109.02,137.41,137.38,12.83157924]
[1763395185626,109.71,137.41,137.38,12.83157924]
[1763395186119,109.71,137.41,137.37,12.83157924]
[1763395186623,109.71,137.41,137.38,12.83157924]
[1763395187027,109.02,137.41,137.38,12.83157924]
[1763395188328,109.02,137.41,137.39,13.55157924]
[1763395188630,109.02,137.41,137.4,12.83157924]
[1763395189021,109.71,137.41,137.38,12.83157924]
[1763395189224,109.02,137.41,137.38,12.83157924]
[1763395189419,109.02,137.41,137.39,13.55157924]
[1763395189750,109.02,137.41,137.4,12.83157924]
[1763395190130,109.02,137.41,137.38,12.83157924]
[1763395190534,104.6,137.41,137.4,12.83157924]
[1763395190935,105.29,137.48,137.4,13.55157924]
[1763395191138,127.83096,137.48,137.44,12.83157924]
[1763395191527,13.52157924,137.47,137.41,13.55157924]
[1763395191731,13.52157924,137.47,137.38,13.55157924]
[1763395191732,40.74136693,137.44,137.38,13.55157924]
[1763395192039,17.25157924,137.43,137.38,13.55157924]
[1763395192224,5.11,137.43,137.39,12.83157924]
[1763395192850,5.11,137.43,137.42,12.83157924]
[1763395192851,4.42,137.43,137.42,12.83157924]
[1763395193058,109.71,137.46,137.42,12.83157924]
[1763395193234,109.71,137.46,137.43,12.83157924]
[1763395193727,109.71,137.46,137.42,0.72]
[1763395193921,109.71,137.46,137.43,12.83157924]
[1763395194129,0.69,137.45,137.41,12.83157924]
[1763395194328,13.52157924,137.45,137.4,12.83157924]
[1763395194728,0.69,137.44,137.4,12.83157924]
[1763395194925,0.69,137.44,137.4,8.08399438]
[1763395195131,8.05399438,137.44,137.39,7.36399438]
[1763395195555,0.69,137.44,137.4,7.36399438]
[1763395196239,8.05399438,137.44,137.35,22.54096]
[1763395196443,8.05399438,137.44,137.38,0.72]
[1763395196444,111.96399438,137.43,137.38,0.72]
[1763395196745,109.02,137.42,137.38,0.72]
[1763395196949,109.71,137.42,137.38,0.72]
[1763395197249,109.02,137.42,137.38,0.72]
[1763395197564,104.6,137.42,137.41,7.36399438]
[1763395198653,104.6,137.42,137.41,8.08399438]
[1763395198859,104.6,137.42,137.41,7.36399438]
[1763395199050,104.6,137.42,137.41,8.08399438]
[1763395200460,104.6,137.42,137.35,18.12096]
[1763395200633,104.6,137.42,137.41,7.36399438]
[1763395200832,104.6,137.42,137.39,18.12096]
[1763395201060,104.6,137.42,137.4,7.36399438]
[1763395201560,104.6,137.42,137.4,0.72]
[1763395201744,0.2,137.51,137.41,8.08399438]
[1763395201745,104.6,137.46,137.41,8.08399438]
[1763395201926,104.6,137.46,137.41,0.72]
[1763395202130,104.6,137.46,137.42,0.72]
[1763395202348,18.32096,137.49,137.42,0.72]
[1763395202555,0.2,137.49,137.42,0.72]
[1763395203055,5.11,137.48,137.4,0.72]
[1763395203240,18.12096,137.45,137.37,0.72]
[1763395203552,4.42,137.44,137.37,0.72]
[1763395203752,18.12096,137.48,137.4,18.12096]
[1763395203942,27.90978769,137.47,137.4,18.12096]
[1763395204252,25.48495438,137.44,137.36,0.72]
[1763395204451,5.11,137.43,137.39,7.36399438]
[1763395204757,12.47399438,137.43,137.38,7.36399438]
[1763395204964,0.69,137.42,137.38,7.36399438]
[1763395205332,7.36399438,137.41,137.34,0.72]
[1763395205533,0.69,137.42,137.34,0.72]
[1763395205732,0.69,137.41,137.38,7.36399438]
[1763395205929,5.11,137.43,137.4,7.36399438]
[1763395206239,5.11,137.43,137.36,18.12096]
[1763395206455,4.42,137.43,137.41,7.36399438]
[1763395206640,4.42,137.43,137.42,7.36399438]
[1763395207756,0.68,137.46,137.42,7.36399438]
[1763395207757,12.46399438,137.46,137.42,7.36399438]
[1763395207962,4.42,137.46,137.43,7.36399438]
[1763395208140,4.42,137.46,137.44,7.36399438]
[1763395208347,4.42,137.46,137.4,0.71]
[1763395208348,0.2,137.49,137.45,7.36399438]
[1763395208551,4.62,137.49,137.41,9.78882769]
[1763395208857,4.62,137.49,137.46,7.36399438]
[1763395209059,9.78882769,137.47,137.4,18.12096]
[1763395209235,18.12096,137.4,137.31,0.71]
[1763395209438,9.78882769,137.38,137.31,0.71]
[1763395209660,7.36399438,137.38,137.33,7.36399438]
[1763395209870,0.68,137.38,137.34,7.36399438]
[1763395210250,8.04399438,137.38,137.33,7.36399438]
[1763395210643,0.68,137.37,137.32,0.71]
[1763395210850,0.68,137.37,137.33,7.36399438]
[1763395211066,9.78882769,137.36,137.31,7.36399438]
[1763395211266,4.42,137.36,137.33,7.36399438]
[1763395211436,4.42,137.36,137.34,7.36399438]
[1763395211848,4.42,137.36,137.33,7.36399438]
[1763395212145,0.68,137.35,137.29,0.71]
[1763395212354,0.68,137.35,137.31,7.36399438]
[1763395212548,8.04399438,137.35,137.31,7.36399438]
[1763395212746,25.48495438,137.33,137.25,0.71]
[1763395212948,4.42,137.32,137.29,7.36399438]
[1763395213284,4.42,137.32,137.26,0.81]
[1763395213457,4.42,137.32,137.31,7.36399438]
[1763395213752,4.42,137.32,137.26,18.93096]
[1763395213753,4.42,137.32,137.29,7.36399438]
[1763395214433,4.42,137.32,137.26,0.1]
[1763395214434,0.68,137.31,137.26,0.1]
[1763395214647,4.42,137.32,137.27,0.71]
[1763395214850,5.1,137.32,137.26,0.81]
[1763395215049,5.1,137.32,137.29,7.36399438]
[1763395215345,4.42,137.32,137.3,7.36399438]
[1763395215546,4.42,137.32,137.31,7.36399438]
[1763395215851,4.42,137.32,137.29,0.71]
[1763395216051,0.68,137.31,137.26,0.1]
[1763395216250,0.68,137.31,137.27,7.36399438]
[1763395216567,0.68,137.31,137.26,0.1]
[1763395216568,8.04399438,137.31,137.26,0.1]
[1763395216869,4.42,137.3,137.26,7.46399438]
[1763395217049,5.1,137.3,137.27,7.36399438]
[1763395218077,0.68,137.29,137.27,7.36399438]
[1763395218280,0.68,137.29,137.26,7.46399438]
[1763395218983,9.78882769,137.28,137.17,0.42156651]
[1763395219172,9.78882769,137.28,137.23,7.36399438]
[1763395219371,17.15282207,137.28,137.23,7.36399438]
[1763395219564,0.68,137.27,137.23,7.36399438]
[1763395219966,0.68,137.27,137.24,7.36399438]
[1763395220383,4.42,137.3,137.25,8.08399438]
[1763395220581,0.68,137.31,137.28,7.36399438]
[1763395220758,0.68,137.32,137.29,7.36399438]
[1763395220972,0.68,137.36,137.31,7.36399438]
[1763395221153,4.42,137.39,137.35,7.36399438]
[1763395221353,4.42,137.38,137.34,7.36399438]
[1763395221571,0.68,137.37,137.34,7.36399438]
[1763395221785,0.68,137.37,137.3,0.72]
[1763395221786,0.68,137.37,137.33,7.36399438]
[1763395221984,8.04399438,137.37,137.31,18.12096]
[1763395222218,7.36399438,137.37,137.32,7.36399438]
[1763395222491,0.68,137.37,137.33,7.36399438]
[1763395222704,4.42,137.38,137.35,254.36399438]
[1763395222852,4.42,137.38,137.35,247.0]
[1763395223058,0.68,137.37,137.35,247.0]
[1763395225088,27.90978769,137.36,137.35,246.65]
[1763395225302,35.27378207,137.36,137.35,246.65]
[1763395225594,28.48978769,137.36,137.35,246.65]
[1763395225756,35.85378207,137.36,137.35,246.65]
[1763395225961,18.70096,137.36,137.35,246.65]
[1763395227071,35.85378207,137.36,137.35,246.65]
[1763395228299,48.02398308,137.36,137.35,246.55]
[1763395228786,40.6599887,137.36,137.35,246.55]
[1763395229003,28.48978769,137.36,137.35,246.55]
[1763395229208,35.85378207,137.36,137.35,246.55]
[1763395229365,7.36399438,137.37,137.35,246.55]
[1763395229690,7.84399438,137.37,137.35,246.55]
[1763395229985,18.12096,137.36,137.35,246.55]
[1763395230185,25.96495438,137.36,137.35,246.55]
[1763395230511,9.78882769,137.37,137.35,246.55]
[1763395230794,4.42,137.38,137.35,254.63399438]
[1763395230998,0.48,137.37,137.35,246.55]
[1763395231173,114.38882769,137.36,137.35,246.55]
[1763395231501,114.38882769,137.36,137.35,253.91399438]
[1763395231502,104.6,137.36,137.35,253.91399438]
[1763395231785,104.6,137.36,137.35,246.55]
[1763395232003,4.42,137.38,137.35,246.55]
[1763395232412,4.42,137.38,137.35,254.63399438]
[1763395232790,4.42,137.38,137.35,253.91399438]
[1763395233025,4.42,137.38,137.35,254.63399438]
[1763395233520,4.42,137.38,137.35,253.91399438]
[1763395233687,4.42,137.38,137.36,8.08399438]